Cogmind - Beta 13 @@@ ROGUE MODE // 2024.04.04 @ 22:08:33 Player: double j Result: Destroyed by G-47 Trooper with Particle Gun Performance ------------- Evolutions (2) 1000 Regions Visited (5) 1000 Robots Destroyed (38) 190 Value Destroyed (1096) 1096 Prototype IDs (4) 80 Alien Tech Used (0) 0 Bonus (1224) 1224 TOTAL SCORE: 4590 Bonus ------- Pacifist 470 High Alert Combat Kills 37 Follower Combat Kills 517 Entered Garrisons 200 Cogmind --------- Core Integrity 0/550 Matter 222/300 Energy 78/100 System Corruption 3% Temperature Cool (-91) Movement Core (150) Ox2 Location -8/Garrison Parts ------- > --- POWER (1) -------- (None) > --- PROPULSION (2) --- (None) > --- UTILITY (6) ------ Cryofiber Web Advanced Heat Sink Small Storage Unit Visual Processing Unit Improved Signal Interpreter Transport Network Coupler > --- WEAPON (2) ------- Katana > --- INVENTORY (8) ---- Trap Scanner Hardened Light Armor Plating Datajack Peak State ------------ > --- POWER ------------ Improved Ion Engine > --- PROPULSION ------- Carbon-fiber Leg Carbon-fiber Leg > --- UTILITY ---------- Advanced Heat Sink Small Storage Unit Visual Processing Unit Transport Network Coupler Experimental Targeting Computer Hacking Suite > --- WEAPON ----------- Advanced Beam Cannon Heavy Particle Cannon > --- INVENTORY -------- Light Deuterium Engine Cryofiber Web Trap Scanner Improved Signal Interpreter Hardened Light Armor Plating Datajack Katana [Rating: 33] Favorites ----------- Power Improved Ion Engine Engine Improved Ion Engine Propulsion Armored Treads Treads Armored Treads Leg Carbon-fiber Leg Hover Unit Airjet Flight Unit Flight Unit Utility Small Storage Unit Device Advanced Heat Sink Storage Small Storage Unit Processor Transport Network Coupler Hackware Hacking Suite Protection Hardened Light Armor Plating Weapon Heavy Particle Cannon Energy Gun EM Pulse Gun Energy Cannon Heavy Particle Cannon Ballistic Gun Assault Rifle Ballistic Cannon Assault Cannon Launcher Rocket Launcher Slashing Weapon Katana Build | -11 -10 -9 -8 -8 -8 ------- Run | Yrd Mat Mat Mat Sto Gar Slots Evolved 4 | . . 2 2 . . Power . | . . . . . . Propulsion . | . . . . . . Utility 4 | . . 2 2 . . Weapon . | . . . . . . Parts Attached 53 | 5 . . 25 15 8 Power 7 | 1 . . 3 2 1 Engine 7 | 1 . . 3 2 1 Core . | . . . . . . Reactor . | . . . . . . Propulsion 10 | 2 . . 4 4 . Treads 3 | . . . 1 2 . Leg 4 | 2 . . . 2 . Wheel . | . . . . . . Hover 1 | . . . 1 . . Flight 2 | . . . 2 . . Utility 19 | 1 . . 7 6 5 Device 8 | . . . 2 4 2 Storage 2 | 1 . . . 1 . Processor 4 | . . . 2 . 2 Hackware 1 | . . . . 1 . Protection 4 | . . . 3 . 1 Artifact . | . . . . . . Weapon 17 | 1 . . 11 3 2 Energy Gun 1 | . . . 1 . . Energy Cannon 3 | . . . . 2 1 Ballistic Gun 1 | 1 . . . . . Ballistic Cannon 4 | . . . 4 . . Launcher 5 | . . . 5 . . Special Weapon . | . . . . . . Impact Weapon . | . . . . . . Slashing Weapon 3 | . . . 1 1 1 Piercing Weapon . | . . . . . . Special Melee Weapon . | . . . . . . Unidentified Prototypes 2 | . . . . . 2 Parts Lost 21 | . . . 12 2 7 Power 6 | . . . 3 1 2 Propulsion 7 | . . . 5 . 2 Utility 3 | . . . 1 1 1 Weapon 5 | . . . 3 . 2 Highest Loss Streak 7 | . . . 5 1 7 To Critical Strikes . | . . . . . . Average Slot Usage (%) 83 | . 71 55 55 92 94 Engine 9 | . 14 11 8 8 8 Treads 10 | . . . 2 14 . Leg 5 | . 28 22 1 2 14 Flight 1 | . . . 9 . . Device 6 | . . . 5 6 10 Storage 9 | . 14 11 9 8 9 Processor 14 | . . . 4 18 23 Hackware 3 | . . . . 4 6 Protection 6 | . . . 2 9 3 Energy Cannon 6 | . . . . 9 12 Ballistic Gun 1 | . 14 11 3 . . Ballistic Cannon 1 | . . . 5 . . Slashing Weapon 6 | . . . . 8 4 Naked Turns . | . . . . . . Heaviest Build 27 | 12 12 12 20 27 26 Greatest Support 40 | 20 20 20 20 40 30 Greatest Overweight (x) 4 | 1 . . 4 1 1 Average Overweight (x) . | . . . 1 . . Largest Inventory Capacity 8 | 8 8 8 8 8 8 Average Capacity 7 | 7 8 8 8 7 8 Most Carried 8 | 4 3 3 8 8 7 Average Carried 5 | 1 2 3 4 6 5 Final Capacity 8 | 8 8 8 8 8 8 Final Carried 7 | 1 3 3 6 7 3 Class Distribution -------------------- 49% | Scavenger-Mutant 26% | Commander-Mutant 23% | Mutant Dominant Class ---------------- Mutant | -10/Materials Mutant | -9/Materials Mutant | -8/Materials Scavenger-Mutant | -8/Storage Scavenger-Mutant | -8/Garrison Resources | -11 -10 -9 -8 -8 -8 ----------- Run | Yrd Mat Mat Mat Sto Gar Matter Collected 838 | 247 . . 281 310 . Remotely . | . . . . . . Salvage Created 1152 | . . . 407 474 271 Parts 76 | . . . 39 24 13 Haulers Intercepted 1 | . . . 1 . . Recyclers Shooed . | . . . . . . Parts Field Recycled . | . . . . . . Retrieved Matter . | . . . . . . Parts Self-Destructed . | . . . . . . Prevented . | . . . . . . Kills | -11 -10 -9 -8 -8 -8 ------- Run | Yrd Mat Mat Mat Sto Gar Combat Hostiles Destroyed 25 | . . . 13 4 8 Melee 3 | . . . . 1 2 Cannons 15 | . . . 6 3 6 AOE 7 | . . . 7 . . Classes Destroyed 11 | . . . 8 3 . Worker 3 | . . . 2 1 . Builder 1 | . . . . 1 . Tunneler 1 | . . . . 1 . Hauler 1 | . . . 1 . . Recycler 2 | . . . . 2 . Watcher 5 | . . . 5 . . Swarmer 9 | . . . 6 . 3 Grunt 10 | . . . 3 2 5 Duelist 1 | . . . 1 . . Sentry 4 | . . . 2 2 . Hunter 1 | . . . 1 . . Best Kill Streak 8 | . . . 8 3 7 Combat Bots Only 7 | . . . 6 2 7 Max Kills in Single Turn 2 | . . . 2 1 1 Gunslinging . | . . . . . . Exploded 2 | . . . 2 . . Melee 1 | . . . . 1 1 Uniques/NPCs Destroyed . | . . . . . . Combat | -11 -10 -9 -8 -8 -8 -------- Run | Yrd Mat Mat Mat Sto Gar Hostile Shots Fired 312 | . . 14 110 59 129 Missed 91 | . . 4 33 15 39 Damage Taken 2913 | . 12 128 1102 674 997 Core 555 | . . . 172 90 293 Absorbed by Shields 133 | . . . 133 . . Regen/Repaired (Parts) 151 | . . . . 151 . Core Remaining (%) 100 | 100 100 100 . . . Volleys Fired 89 | . . . 40 20 29 Largest 1 | . . . 1 1 1 Hottest 75 | . . . 44 75 75 Shots Fired 89 | . . . 40 20 29 Gun 5 | . . . 5 . . Cannon 67 | . . . 18 20 29 Launcher 17 | . . . 17 . . Special . | . . . . . . Kinetic 18 | . . . 18 . . Thermal 49 | . . . . 20 29 Explosive 17 | . . . 17 . . Electromagnetic 5 | . . . 5 . . Robot Hit Streak 10 | . . . 5 4 10 Robot Miss Streak 3 | . . . 3 3 2 Penetration Max . | . . . . . . Secondary Targets . | . . . . . . Shots Hit Robots 66 | . . . 25 19 22 Core Hits 53 | . . . 31 11 11 Critical Kills . | . . . . . . Critical Parts Destroyed . | . . . . . . Critical Strikes 1 | . . . 1 . . Blast 1 | . . . 1 . . Melee Attacks 14 | . . . . 10 4 Impact . | . . . . . . Slashing 14 | . . . . 10 4 Piercing . | . . . . . . Sneak Attacks 6 | . . . . 6 . Combat Hostiles . | . . . . . . Follow-up Attacks . | . . . . . . Damage Inflicted 2612 | . . 2 1370 726 514 Guns 57 | . . . 57 . . Cannons 976 | . . . 339 250 387 Explosions 960 | . . . 960 . . Melee 603 | . . . . 476 127 Ramming 16 | . . 2 14 . . Kinetic 339 | . . . 339 . . Thermal 691 | . . . 54 250 387 Explosive 906 | . . . 906 . . Electromagnetic 57 | . . . 57 . . Impact . | . . . . . . Slashing 603 | . . . . 476 127 Piercing . | . . . . . . Highest Corruption 3 | . . . . 3 3 Average Corruption 1 | . . . . 1 3 Corruption Purged . | . . . . . . Corruption Blocked . | . . . . . . Effects 19 | . . . . 12 7 Message Errors 4 | . . . . 3 1 Matter Fused 6 | . . . . 4 2 Heat Flow Errors 3 | . . . . 2 1 Energy Discharges 1 | . . . . 1 . Data Loss (minor) 1 | . . . . . 1 Data Loss (major) 4 | . . . . 2 2 Overload Shots . | . . . . . . Overflow Damage 256 | . . . 224 32 . Projectiles 1 | . . . 1 . . Explosions 223 | . . . 223 . . Melee 32 | . . . . 32 . Knockbacks 5 | . . . 5 . . Impact . | . . . . . . Kinetic 4 | . . . 4 . . Secondary 1 | . . . 1 . . Self-Inflicted Damage 276 | . . . 276 . . Shots 4 | . . . 4 . . Rammed 2 | . . . 2 . . Targets Rammed 4 | . . 1 3 . . Kicked 2 | . . 1 1 . . Crushed . | . . . . . . Highest Temperature 283 | . . . 25 283 76 Average Temperature 107 | . . . 7 115 57 Received Heat Transfer 957 | . . 72 174 324 387 Effects 2 | . . . . 2 . Interference 2 | . . . . 2 . Siege Activations . | . . . . . . Robots Corrupted . | . . . . . . Combat Hostiles . | . . . . . . Parts Fried . | . . . . . . Impact Corruptions . | . . . . . . Robots Melted . | . . . . . . Combat Hostiles . | . . . . . . Parts Melted 3 | . . . . . 3 Heat Transferred 1123 | . . . 50 370 703 Parts Sabotaged . | . . . . . . Parts Stolen . | . . . . . . Parts Stripped . | . . . . . . Power Chain Reactions 1 | . . . 1 . . Alert | -11 -10 -9 -8 -8 -8 ------- Run | Yrd Mat Mat Mat Sto Gar Peak Influence 529 | . 25 25 529 394 371 Initial 191 | . . 10 10 179 191 Average 234 | . 7 24 298 249 221 Maximum Alert Level 2 | . . . 2 1 1 Low Security (%) 35 | 100 100 100 35 24 58 Level 1 55 | . . . 16 75 41 Level 2 8 | . . . 48 . . Level 3 . | . . . . . . Level 4 . | . . . . . . Level 5 . | . . . . . . High Security . | . . . . . . Max Security . | . . . . . . Squads Dispatched 4 | . 1 1 1 1 . Investigation 2 | . . . 1 1 . Extermination . | . . . . . . Reinforcement 2 | . 1 1 . . . Assault . | . . . . . . Garrison . | . . . . . . Intercept . | . . . . . . Searches Triggered . | . . . . . . Construction Impeded . | . . . . . . Haulers Reinforced . | . . . . . . Active Scanning Responses . | . . . . . . Cargo Convoy Interrupts . | . . . . . . Stealth | -11 -10 -9 -8 -8 -8 --------- Run | Yrd Mat Mat Mat Sto Gar Distress Signals 7 | . . . 5 2 . Communications Jammed . | . . . . . . Distress Signals . | . . . . . . Times Spotted 68 | . 1 3 27 19 18 Peak Tracking Total 16 | . 1 3 8 3 16 Tactical Retreats 2 | . . . . 1 1 Traps | -11 -10 -9 -8 -8 -8 ------- Run | Yrd Mat Mat Mat Sto Gar Traps Triggered 3 | . 1 . . 2 . Indirectly . | . . . . . . Trap Hack Attempts . | . . . . . . Triggered . | . . . . . . Disarmed . | . . . . . . Reprogrammed . | . . . . . . Reused . | . . . . . . Traps Extracted . | . . . . . . Installed . | . . . . . . Triggered . | . . . . . . Machines | -11 -10 -9 -8 -8 -8 ---------- Run | Yrd Mat Mat Mat Sto Gar Machines Disabled 10 | . . . 9 1 . Max in Single Turn 3 | . . . 3 . . Machines Repaired . | . . . . . . Machines Dismantled . | . . . . . . Machines Sabotaged . | . . . . . . Overloaded Fab Kills . | . . . . . . Hacking | -11 -10 -9 -8 -8 -8 --------- Run | Yrd Mat Mat Mat Sto Gar Machines Accessed 21 | . 1 . 5 14 1 Terminals 15 | . 1 . 4 9 1 Fabricators . | . . . . . . Repair Stations 2 | . . . . 2 . Recycling Units 3 | . . . 1 2 . Scanalyzers . | . . . . . . Garrison Access 1 | . . . . 1 . Total Hacks 62 | . 7 . 14 39 2 Successful 35 | . 5 . 4 26 . Failed 26 | . 1 . 10 13 2 Catastrophic 5 | . . . 3 1 1 Database Lockouts 1 | . 1 . . . . Manual . | . . . . . . Terminals 41 | . 7 . 11 21 2 Fabricators . | . . . . . . Repair Stations 11 | . . . . 11 . Recycling Units 9 | . . . 3 6 . Scanalyzers . | . . . . . . Garrison Access 1 | . . . . 1 . Terminal Hacks 19 | . 5 . 2 12 . Record 8 | . 5 . 2 1 . Robot Analysis 1 | . . . . 1 . Prototype ID Bank 1 | . . . . 1 . Open Door 4 | . . . . 4 . Dispatch Records 1 | . . . . 1 . Maintenance Status 1 | . . . . 1 . Investigation Status 1 | . . . . 1 . Hauler Manifests 1 | . . . . 1 . Zone Layout 1 | . . . . 1 . Fabricator Hacks . | . . . . . . Repair Station Hacks 9 | . . . . 9 . Scan Component 5 | . . . . 5 . Repair 4 | . . . . 4 . Recycling Unit Hacks 6 | . . . 2 4 . Process 3 | . . . 1 2 . Report Inventory 1 | . . . 1 . . Retrieve Matter 2 | . . . . 2 . Scanalyzer . | . . . . . . Garrison Access Hacks 1 | . . . . 1 . Unlock Access 1 | . . . . 1 . Unauthorized Hacks . | . . . . . . Terminals . | . . . . . . Fabricators . | . . . . . . Repair Stations . | . . . . . . Recycling Units . | . . . . . . Scanalyzers . | . . . . . . Garrison Access . | . . . . . . Data Cores Recovered . | . . . . . . Used . | . . . . . . Hacking Detections 17 | . 1 . 5 10 1 Full Trace Events 4 | . . . 2 1 1 Feedback Events . | . . . . . . Feedback Blocked . | . . . . . . Robot Schematics Acquired . | . . . . . . Robots Built . | . . . . . . Authchips . | . . . . . . Time . | . . . . . . Total Robot Build Rating . | . . . . . . Part Schematics Acquired . | . . . . . . Parts Built . | . . . . . . Authchips . | . . . . . . Time . | . . . . . . Total Part Build Rating . | . . . . . . Parts Repaired 4 | . . . . 4 . Time 140 | . . . . 140 . Parts Recycled . | . . . . . . Recycled Matter 36 | . . . . 36 . Retrieved Matter 36 | . . . . 36 . Retrieved Components . | . . . . . . Parts Scanalyzed . | . . . . . . Part Schematics Acquired . | . . . . . . Parts Damaged . | . . . . . . Bothacking | -11 -10 -9 -8 -8 -8 ------------ Run | Yrd Mat Mat Mat Sto Gar Used RIF Installer . | . . . . . . Robots Hacked . | . . . . . . Non-combat . | . . . . . . Combat . | . . . . . . Robot Hacks Applied . | . . . . . . Relay Couplers Released . | . . . . . . Fabnet Peak Effective % . | . . . . . . Robots Rewired . | . . . . . . Allies Hacked . | . . . . . . Hacks Repelled . | . . . . . . Allies | -11 -10 -9 -8 -8 -8 -------- Run | Yrd Mat Mat Mat Sto Gar Total Allies 10 | . . . . 10 . Largest Group 10 | . . . . 10 . Highest-Rated Group 173 | . . . . 173 . Highest-Rated Ally 29 | . . . . 29 . Total Orders . | . . . . . . Ally Attacks 97 | . . . . 97 . Total Damage 1306 | . . . . 1306 . Kills 17 | . . . . 17 . Allies Corrupted . | . . . . . . Allies Melted . | . . . . . . Intel | -11 -10 -9 -8 -8 -8 ------- Run | Yrd Mat Mat Mat Sto Gar Robot Analysis Total 1 | . . . . 1 . Derelict Logs Recovered . | . . . . . . Drone Launches . | . . . . . . Drone Recoveries . | . . . . . . Exploration | -11 -10 -9 -8 -8 -8 ------------- Run | Yrd Mat Mat Mat Sto Gar Turns Passed 3183 | 57 98 138 566 2086 238 Spaces Moved 1708 | 58 81 115 276 1055 123 Core 44 | 39 . . 5 . . Treads 921 | . . . 48 873 . Legs 560 | 19 81 115 40 182 123 Wheels . | . . . . . . Hover 34 | . . . 34 . . Flight 149 | . . . 149 . . Fastest Speed 50 | 50 120 120 117 120 120 Average Speed 149 | 79 120 120 156 159 125 Slowest Speed 360 | 120 120 120 360 250 190 Overloaded Moves . | . . . . . . Propulsion Burnouts . | . . . . . . Robots Hopped . | . . . . . . Cave-ins Triggered . | . . . . . . Exploration Rate (%) 33 | 5 23 16 33 92 32 Regions Visited 5 Branch Regions 1 Pre-discovered Areas . | . . . . . . Known Exits Taken 1 | . . . . 1 . Unknown Exits Taken 4 | 1 1 1 1 . . Scrap Searched . | . . . . . . Spaces Dug . | . . . . . . Terrain Destroyed 177 | . . . 167 10 . Melee . | . . . . . . Projectile 14 | . . . 4 10 . AOE 163 | . . . 163 . . Terrain Rammed . | . . . . . . Walls Destroyed . | . . . . . . Machines Disabled . | . . . . . . Actions | -11 -10 -9 -8 -8 -8 --------- Run | Yrd Mat Mat Mat Sto Gar Total 2233 | 68 82 115 369 1428 171 Wait 305 | . . . . 298 7 Move 1703 | 57 80 114 275 1054 123 Hop . | . . . . . . Pick Up 48 | 6 2 . 17 23 . Fast Attach 1 | . . . . 1 . Attach 40 | 5 . . 18 14 3 Detach 6 | . . . 6 . . Swap 12 | . . . 7 . 5 Drop 11 | . . . 3 8 . Fire 89 | . . . 40 20 29 Melee 14 | . . . . 10 4 Ram 2 | . . . 2 . . Kick 2 | . . 1 1 . . Crush . | . . . . . . Escape Stasis . | . . . . . . Rewire . | . . . . . . Trap . | . . . . . . Miscellaneous . | . . . . . . Route ------- -11/Scrapyard -10/Materials -9/Materials -8/Materials -8/Storage (discovered 2 exits: [*Fac] / Gar) -8/Garrison History --------- Turn | Location | Event 4 | -11/Scrapyard | Discovered new exit (range 14) 58 | -11/Scrapyard | Entered Materials 119 | -10/Materials | Central database locked down 138 | -10/Materials | Discovered new exit (range 15) 156 | -10/Materials | Entered another Materials area 156 | -9/Materials | Evolved 2 slots: Utility x2 292 | -9/Materials | Discovered new exit (range 3) 294 | -9/Materials | Entered another Materials area 294 | -8/Materials | Evolved 2 slots: Utility x2 302 | -8/Materials | Build established: Mutant 386 | -8/Materials | Lost 4 parts (1p2n1w) 532 | -8/Materials | Lost 3 parts (1p1n1w) 852 | -8/Materials | Discovered new exit (range 5) 860 | -8/Materials | Entered Storage 882 | -8/Storage | Lost 5 parts (1p2n1u1w) 1162 | -8/Storage | Found Prototype Processor 1219 | -8/Storage | Build established: Scavenger-Mutant 1576 | -8/Storage | Discovered new exit (range 14) 1617 | -8/Storage | Assisted by bots powering up and referring to "LRC-V3" 1921 | -8/Storage | Build established: Commander-Mutant 2540 | -8/Storage | Lost 5 allies 2714 | -8/Storage | Repaired Sml. Storage Unit 2779 | -8/Storage | Build established: Scavenger-Mutant 2791 | -8/Storage | Identified exit to Garrison 2797 | -8/Storage | Repaired Imp. Signal Interpreter 2835 | -8/Storage | Repaired Cryofiber Web 2877 | -8/Storage | Repaired Imp. Signal Interpreter 2946 | -8/Storage | Entered Garrison 2988 | -8/Garrison | Triggered checkpoint 3031 | -8/Garrison | Identified Exp. Targeting Computer 3086 | -8/Garrison | Core integrity fell below 50% 3088 | -8/Garrison | Triggered checkpoint 3088 | -8/Garrison | Triggered checkpoint 3129 | -8/Garrison | Core integrity fell below 20% 3184 | -8/Garrison | Destroyed by G-47 Trooper with Particle Gun Last Messages --------------- Connecting with Garrison Terminal... ALERT: Suspicious activity at Terminal G002. Transmitting hostile system tracking data. System corrupted: Substantial component data lost. S-10 Pest destroyed. Critical hit (Burn: +37). Aluminum Leg melted. G-47 Trooper destroyed. S-10 Pest destroyed. Machine disabled. System corrupted: Matter fused (-9). Carbon-fiber Leg destroyed. Aluminum Leg melted. Imp. Heat Sink melted. G-47 Trooper destroyed. Lgt. Deuterium Engine destroyed. Critical hit (Burn: +37). Adv. Beam Cannon destroyed. G-47 Trooper destroyed. Map ----- +----------------------------------------------------+ | ?????????????????????????????????????????????????? | | ?????????????????????????????????????????????????? | | ?????????????????????????????????????????????????? | | ?????????????????????????????????????????????????? | | ?????????????????????????????????????????????????? | | ?????????????????????????????????????????????????? | | ?????????????????????????????????????????????????? | | ?????????????????????????????????????????????????? | | ?????????????????????????????????????????????????? | | ?????????????????????????????????????????????????? | | ?????????????????????????????????????????????????? | | ?????????????????????????????????????????????????? | | ?????????????????????????????????????????????????? | | ?????????????????????????????????????????????????? | | ?????????????????????????????????????????????????? | | ?????????????????????????????????????????????????? | | ?????????????????????????????????????????????????? | | ?????????????????????????????????????????????????? | | ?????????????????????????????????????????????????? | | ??????????????????????????####???????????????????? | | ?????????????????????????? #???????????????????? | | ?????????????????????????? #???????????????????? | | ??????????????????????????# #???????????????????? | | ??????????????????????##### #???????????????????? | | ??????????????????????#"T=#%[#???????????????????? | | ??????????????????????#"=@gg=#???????????????????? | | ??????????????????????#####g*#???????????????????? | | ??????????????????????????# #???????????????????? | | ????????????????????####### ###########?????????? | | ????????????????????# [ #?????????? | | ????????????????????# #####=[ #?????????? | | ??????????????????????????#=%######## #?????????? | | ??????????????????????????#%=####???# #?????????? | | ????????????????????????? + + #???# #?????????? | | ????????????????????????### ## # #?????????? | | ??????????????????????????# #??##?## #?????????# | | ??????????????????????????# #??????# #??####? # | | ??????????????????????????# #??????# #? #? # | | ??????????????????????????# #?????## ## ## # | | ??????????????????????????# ####### | | ??????????????????????????# ^ | | ??????????????????????????# | | ??????????????????????????########## ## ## | | ?????????????????????????????????### ## ## | | ?????????????????????????????????# *%= | | ?????????????????????????????????# [ | | ?????????????????????????????????# | | ?????????????????????????????????# | | ?????????????????????????????????### ## ## | | ???????????????????????????????????# ## ## | +----------------------------------------------------+ Best States ------------- Heat Dissipation 50 Energy Generation 14 Energy Capacity 265 Matter Stores 300 Matter Capacity 300 Sight Range 18 Terrain Scan Range 14 Terrain Scan Density 10 Base Temperature (-) 100 Armor Coverage 150 Evasion (%) 55 Recoil Reduction 2 Offensive Hacking 10 Item Schematics ----------------- None Robot Schematics ------------------ None Fabricated ------------ Nothing Alien Tech Used ----------------- None Achievements -------------- Loot Pinata The More The Merrier Challenges ------------ None Game ------ Seed EfficiencyShrapnelBroadsword Manual? 0 Play Time 00:50:22 Cumulative 4.8 hours Start 2024.04.04 @ 21:20:05 End 2024.04.04 @ 22:08:33 Sessions 1 Manual Loads 0 Difficulty Rogue Special Mode None Game No. 10 Rogue 10 Adventurer 0 Explorer 0 Win Type - Total 0 Types 0/0/0/0/0/0/0/0/0 Lore% 5 Gallery% 9 Achievement% 11 Wizard Run 0 Options --------- Layout 1 ASCII 0 Keyboard 0 Movement Mouse Keybinds 0 Fullscreen 1 Font 24/Smallcaps Map View 50x35 Zoom Use 0% Tactical HUD 0 Map Filters NONE Filters NONE Steam 1 RUN: cdbeb725-bc31-43bf-9850-fcfaaa79dd4e